Cogmind - Beta 17.1 @@@ ROGUE MODE // 2026.09.02 @ 02:19:36 Player: TheSkyeDoctor Result: Destroyed by S-27 Virus with Autogun Performance ------------- Evolutions (6) 3000 Regions Visited (22) 4400 Robots Destroyed (192) 960 Value Destroyed (7928) 7928 Prototype IDs (47) 940 Alien Tech Used (1) 200 Bonus (7164) 7164 TOTAL SCORE: 24592 Bonus ------- High Alert Combat Kills 2620 Follower Combat Kills 2145 Awakened Behemoth Slayer 1000 Network Hubs Disabled 200 Aligned with FarCom 300 Met Data Miner 300 Built Enhanced Grunts 300 A7 Reached Mainframe 300 Met R17 at Cetus 500 Friendly Fire -501 Cogmind --------- Core Integrity 0/1150 Matter 300/300 Energy 98/100 System Corruption 14% Temperature Cool (0) Movement Core (50) Location -4/Factory Parts ------- > --- POWER (2) -------- (None) > --- PROPULSION (5) --- (None) > --- UTILITY (8) ------ Advanced Signal Interpreter Advanced Terrain Scan Processor Core Analyzer > --- WEAPON (5) ------- (None) > --- INVENTORY (5) ---- Energy Well (350) Matter Compressor (26) Advanced Datajack CR-A16's Behemoth Slayer Peak State ------------ > --- POWER ------------ Quantum Reactor Quantum Reactor > --- PROPULSION ------- Advanced VSS Leg Enhanced Biometal Leg Enhanced Biometal Leg Enhanced Biometal Leg > --- UTILITY ---------- Improved Cooling System High-capacity Storage Unit Energy Well Advanced Targeting Computer Core Analyzer Centrium Medium Armor Plating Improved Shield Generator > --- WEAPON ----------- Railgun Advanced KE Penetrator Advanced KE Penetrator Advanced KE Penetrator Powered Hammer > --- INVENTORY -------- Neutrino Core Quantum Reactor Improved Cryofiber Web Matter Compressor Advanced Sensor Array Improved Terrain Scanner Advanced Terrain Scan Processor Nanoactuators Makeshift Cloaking Device Centrium Medium Armor Plating Rocket Array Rocket Array Advanced Datajack CR-A16's Behemoth Slayer [Rating: 125] Favorites ----------- Power Quantum Reactor Engine Light Angular Momentum Engine Power Core Neutrino Core Reactor Quantum Reactor Propulsion Armored Wheel Treads Light Treads Leg Myomer Leg Wheel Armored Wheel Utility High-capacity Storage Unit Device Improved Terrain Scanner Storage High-capacity Storage Unit Processor Advanced Terrain Scan Processor Protection Centrium Medium Armor Plating Weapon Advanced KE Penetrator Energy Gun Pulse Rifle Energy Cannon Plasma Cannon Ballistic Gun Advanced KE Penetrator Ballistic Cannon Magnetic Acceleration Cannon Launcher Rocket Array Impact Weapon Impact Mace Slashing Weapon Longsword +1 Piercing Weapon CR-A16's Pointy Stick Special Melee Weapon Datajack Build | -11 -10 -10 -10 -9 -8 -7 -7 -7 -7 -7 -6 -6 -6 -6 -6 -5 -5 -5 -5 -5 -5 -4 ------- Run | Yrd Mat Min Exi Min Mat Fac Was Fac Low Dat Pro Fac Low Low Zio Pro Fac Ext Cet Arc Hub Fac Slots Evolved 12 | . . . . . 4 2 . . . . . 2 . . . . 2 . . . . 2 Power 1 | . . . . . . 1 . . . . . . . . . . . . . . . . Propulsion 3 | . . . . . . 1 . . . . . . . . . . 1 . . . . 1 Utility 6 | . . . . . 2 . . . . . . 2 . . . . 1 . . . . 1 Weapon 2 | . . . . . 2 . . . . . . . . . . . . . . . . . Parts Attached 142 | 7 . . 1 1 11 4 6 5 2 . 2 19 1 2 1 2 13 26 9 1 16 13 Power 24 | 1 . . . . 1 1 2 2 . . . 5 1 . . . 2 3 2 . 1 3 Engine 9 | 1 . . . . 1 1 . 1 . . . 2 1 . . . 2 . . . . . Core 7 | . . . . . . . . 1 . . . 3 . . . . . 2 . . . 1 Reactor 8 | . . . . . . . 2 . . . . . . . . . . 1 2 . 1 2 Propulsion 35 | 2 . . . . 2 1 1 1 . . . 3 . . . 1 4 13 1 . 5 1 Treads 4 | 2 . . . . 2 . . . . . . . . . . . . . . . . . Leg 14 | . . . . . . . . . . . . . . . . . . 7 1 . 5 1 Wheel 17 | . . . . . . 1 1 1 . . . 3 . . . 1 4 6 . . . . Hover . | . . . . . . . . . . . . . . . . . . . . . . . Flight . | . . . . . . . . . . . . . . . . . . . . . . . Utility 40 | 2 . . 1 . 4 . 3 1 2 . 2 5 . . . 1 2 2 3 . 6 6 Device 17 | 1 . . . . 2 . 3 . 2 . . . . . . . 1 . 1 . 4 3 Storage 5 | 1 . . 1 . . . . . . . . 1 . . . . . . . . 1 1 Processor 12 | . . . . . 2 . . 1 . . . 4 . . . 1 1 1 . . . 2 Hackware . | . . . . . . . . . . . . . . . . . . . . . . . Protection 6 | . . . . . . . . . . . 2 . . . . . . 1 2 . 1 . Artifact . | . . . . . . . . . . . . . . . . . . . . . . . Weapon 43 | 2 . . . 1 4 2 . 1 . . . 6 . 2 1 . 5 8 3 1 4 3 Energy Gun 8 | 1 . . . . 2 . . . . . . 2 . . 1 . . 2 . . . . Energy Cannon 6 | . . . . . . 2 . 1 . . . . . . . . . . 1 . . 2 Ballistic Gun 14 | 1 . . . 1 1 . . . . . . 1 . 1 . . 1 2 2 . 4 . Ballistic Cannon 7 | . . . . . . . . . . . . 2 . 1 . . 2 2 . . . . Launcher 2 | . . . . . . . . . . . . . . . . . 1 . . . . 1 Special Weapon . | . . . . . . . . . . . . . . . . . . . . . . . Impact Weapon 2 | . . . . . . . . . . . . 1 . . . . 1 . . . . . Slashing Weapon 1 | . . . . . 1 . . . . . . . . . . . . . . . . . Piercing Weapon 1 | . . . . . . . . . . . . . . . . . . 1 . . . . Special Melee Weapon 2 | . . . . . . . . . . . . . . . . . . 1 . 1 . . Unidentified Prototypes 13 | . . . . . 2 1 . . . . . 2 . 1 1 . 1 . 3 . 1 1 Parts Lost 76 | . . . . 1 . . . . 1 . 3 8 3 1 . 5 3 13 . . 16 22 Power 15 | . . . . . . . . . 1 . 1 2 2 . . 1 1 1 . . 2 4 Propulsion 16 | . . . . . . . . . . . . 1 1 . . 1 1 5 . . 2 5 Utility 20 | . . . . . . . . . . . 1 2 . . . 2 . 2 . . 7 6 Weapon 25 | . . . . 1 . . . . . . 1 3 . 1 . 1 1 5 . . 5 7 Highest Loss Streak 15 | . . . . 1 . . . . 1 . 3 3 3 1 . 2 2 11 . . 4 15 To Critical Strikes 2 | . . . . . . . . . . . . . . . . . . . . . . 2 Average Backups 14 | 2 4 6 9 11 10 12 14 14 14 14 14 16 13 15 16 16 13 18 20 20 16 9 Power 1 | . 1 1 1 1 1 . . 1 . . . 1 . . . . . 2 2 2 1 1 Propulsion 1 | . 1 1 1 1 1 3 3 1 1 1 1 1 1 1 1 . . 1 2 2 1 . Utility 8 | . 1 1 4 6 5 6 8 9 11 11 11 9 7 8 9 10 8 10 11 10 8 4 Weapon 3 | . 1 1 2 2 1 2 2 1 1 1 1 3 4 4 5 5 3 3 4 4 4 2 Tool/Special . | . . . . . . . . . . . . . . . . . . . . . . . Unused Backups 23 | . . . 1 . 1 . . 1 . . . 8 . . 2 . 1 1 5 . 1 2 Power 4 | . . . . . . . . . . . . 1 . . . . . . 3 . . . Propulsion 5 | . . . . . 1 . . . . . . . . . . . . 1 2 . 1 . Utility 8 | . . . 1 . . . . . . . . 4 . . . . 1 . . . . 2 Weapon 6 | . . . . . . . . 1 . . . 3 . . 2 . . . . . . . Tool/Special . | . . . . . . . . . . . . . . . . . . . . . . . Average Slot Usage (%) 91 | . 100 100 100 100 98 93 100 100 99 100 97 93 87 86 78 61 69 98 100 99 95 74 Engine 4 | . 14 14 14 14 9 15 11 2 . . . . 10 12 12 6 2 1 . . . . Core 2 | . . . . . . . . 4 6 . . 6 1 . . . . 6 1 . 1 2 Reactor 3 | . . . . . . . 3 7 8 15 14 4 . . . . . 1 9 11 9 4 Treads 4 | . 28 28 28 28 18 15 7 . . . . . . . . . . . . . . . Leg 4 | . . . . . . . . . . . . . . . . . . 7 22 22 22 15 Wheel 8 | . . . . . . 6 14 23 23 23 22 15 7 6 6 6 7 14 . . . . Device 8 | . 14 14 14 14 10 7 7 7 7 7 2 11 6 6 6 6 11 8 5 5 9 14 Storage 7 | . 14 14 14 14 9 7 7 7 7 7 7 6 6 6 6 6 5 5 5 5 7 5 Processor 16 | . . . . . 16 15 15 15 15 15 14 15 26 25 25 24 21 22 22 22 13 13 Protection 1 | . . . . . . . . . . . 4 4 . . . . . 2 4 5 5 1 Energy Gun 6 | . 14 14 14 14 17 7 7 7 7 7 7 11 6 6 5 6 . 4 . . . . Energy Cannon 1 | . . . . . . . 7 7 7 7 6 . . . . . . . . . . 3 Ballistic Gun 7 | . 14 14 14 14 9 7 7 7 7 7 7 5 . 4 3 . 5 10 10 11 13 9 Ballistic Cannon 4 | . . . . . . . . . . . . 1 13 12 6 . 8 5 11 11 6 . Impact Weapon 2 | . . . . . . . . . . . . 3 6 6 6 5 4 1 . 3 5 2 Slashing Weapon 1 | . . . . . 8 7 7 7 7 7 7 2 . . . . . . . . . . Peak Build Rating 125 | 7 7 8 11 11 36 46 50 58 58 57 61 75 69 71 76 76 72 95 113 118 125 118 Average Rating 66 | 5 7 7 8 10 32 42 46 55 55 57 56 68 64 68 72 70 60 79 107 114 115 91 On Entrance 53 | . 7 7 8 11 11 36 46 50 58 57 57 45 69 64 70 76 62 68 92 112 115 101 Avg Prop Armor Cover (%) 9 | . . . . . . 10 8 . . . . . . . . . . 6 . . . . Naked Turns . | . . . . . . . . . . . . . . . . . . . . . . . Heaviest Build 133 | 15 15 15 30 30 44 56 61 70 70 70 76 93 84 89 88 85 87 105 119 121 133 114 Greatest Support 108 | 40 40 40 40 40 40 12 24 36 36 36 36 40 40 28 28 28 46 100 95 95 108 108 Greatest Overweight (x) 10 | . . . . . 1 4 4 1 1 1 2 3 2 3 3 3 7 10 1 1 1 3 Average Overweight (x) 1 | . . . . . . 3 2 1 1 1 1 1 1 2 2 2 1 1 1 1 . . Largest Inventory Capacity 20 | 8 8 8 15 15 15 15 15 15 15 15 15 20 20 20 20 20 20 20 20 20 20 20 Average Capacity 17 | 7 8 8 12 15 15 15 15 15 15 15 15 19 20 20 20 20 20 20 20 20 20 18 Most Carried 20 | 4 4 8 12 12 14 14 15 15 15 14 14 20 20 19 20 19 16 20 20 20 20 13 Average Carried 15 | 2 4 6 9 11 10 12 14 14 14 14 14 17 16 16 18 17 13 18 19 20 16 9 Final Capacity 20 | 8 8 8 15 15 15 15 15 15 15 15 15 20 20 20 20 20 20 20 20 20 20 5 Final Carried 20 | 4 4 8 12 11 14 14 15 15 14 14 14 18 14 17 19 17 13 20 20 20 12 4 Class Distribution -------------------- 42% | Skirmisher 17% | Mutant 12% | Commander-Gunner 11% | Scavenger-Skirmisher 6% | Scavenger-Gunner 3% | Gunner Dominant Class ---------------- Mutant | -10/Materials Mutant | -10/Mines Mutant | -10/Exiles Mutant | -9/Mines Skirmisher | -8/Materials Mutant | -7/Factory Scavenger-Skirmisher | -7/Waste Skirmisher | -7/Factory Skirmisher | -7/Lower Caves Skirmisher | -7/Data Miner Tank | -6/Proximity Caves Skirmisher | -6/Factory Skirmisher | -6/Lower Caves Skirmisher | -6/Lower Caves Skirmisher | -6/Zion Gunner | -5/Proximity Caves Skirmisher | -5/Factory Scavenger-Skirmisher | -5/Extension Commander-Gunner | -5/Cetus Commander-Gunner | -5/Archives Scavenger-Gunner | -5/Hub_04(d) Scavenger-Skirmisher | -4/Factory Resources | -11 -10 -10 -10 -9 -8 -7 -7 -7 -7 -7 -6 -6 -6 -6 -6 -5 -5 -5 -5 -5 -5 -4 ----------- Run | Yrd Mat Min Exi Min Mat Fac Was Fac Low Dat Pro Fac Low Low Zio Pro Fac Ext Cet Arc Hub Fac Matter Collected 6497 | 318 . 183 10 62 56 94 78 108 99 . 164 653 83 136 17 25 501 1285 289 104 1830 402 Remotely . | . . . . . . . . . . . . . . . . . . . . . . . Salvage Created 7882 | 157 . 163 . 170 110 251 314 116 . . 246 836 130 79 . 579 463 1117 254 79 2525 293 Parts 370 | 12 . 7 . 22 6 11 6 8 . . 10 28 1 8 . 30 23 26 15 2 140 15 Haulers Intercepted 1 | . . . . . . . . . . . . . . . . . . 1 . . . . Recyclers Shooed . | . . . . . . . . . . . . . . . . . . . . . . . Parts Field Recycled . | . . . . . . . . . . . . . . . . . . . . . . . Retrieved Matter . | . . . . . . . . . . . . . . . . . . . . . . . Parts Self-Destructed 49 | . . . . . . . . . 3 . 10 . 1 6 . 29 . . . . . . Prevented 2 | . . . . . . . . . 2 . . . . . . . . . . . . . Parts Restored . | . . . . . . . . . . . . . . . . . . . . . . . Kills | -11 -10 -10 -10 -9 -8 -7 -7 -7 -7 -7 -6 -6 -6 -6 -6 -5 -5 -5 -5 -5 -5 -4 ------- Run | Yrd Mat Min Exi Min Mat Fac Was Fac Low Dat Pro Fac Low Low Zio Pro Fac Ext Cet Arc Hub Fac Combat Hostiles Destroyed 139 | . . 3 . 12 2 6 1 1 . . 5 17 2 4 . 16 9 10 4 1 36 10 Melee 17 | . . . . . 2 6 . 1 . . 4 3 1 . . . . . . . . . Guns 70 | . . 3 . 12 . . 1 . . . . 3 . 2 . 16 2 5 . 1 25 . Cannons 30 | . . . . . . . . . . . 1 2 . 1 . . 3 4 4 . 10 5 AOE 10 | . . . . . . . . . . . . 1 . . . . 4 . . . . 5 Classes Destroyed 22 | 3 . 1 . 1 1 1 1 1 . . 1 1 1 1 . 2 1 3 . . 3 . Worker 15 | 1 . . . . . . . . . . . . . . . . . . . . 11 3 Builder 12 | . . . . . . . . . . . . . . . . . . 2 . . 7 3 Tunneler 8 | 3 . 1 . . . . . . . . . . . . . . 3 . . . 1 . Hauler 1 | . . . . . . . . . . . . . . . . . . 1 . . . . Recycler 5 | 1 . . . . . . . . . . . . . . . . 1 3 . . . . Minesweeper 1 | . . . . . . . . . . . . . 1 . . . . . . . . . Operator 1 | . . . . . . . . . . . . . . . . . . 1 . . . . Drone 1 | . . . . . . . . . . . . . . . . 1 . . . . . . Watcher 8 | . . . . . . . . 2 . . . . . . . . 1 1 2 . 2 . Swarmer 40 | . . . . 12 . 3 . . . . 2 . . 3 . 10 3 . . . 5 2 Grunt 41 | . . 3 . . . 1 . . . . 1 8 . . . 1 4 8 . . 11 4 Brawler 1 | . . . . . . . . . . . . . . . . . . . . . 1 . Duelist 5 | . . . . . . . . . . . 1 1 . . . 1 . . . . 2 . Protector 2 | . . . . . . . . . . . . . . . . . . . . . 1 1 Sentry 11 | . . . . . 2 1 . 1 . . 1 3 . . . . . 1 . 1 1 . Specialist 5 | . . . . . . . . . . . . . . . . . 2 . . . 3 . Hunter 9 | . . . . . . . . . . . . 1 2 . . . . . . . 5 1 Programmer 9 | . . . . . . 1 . . . . . 4 . . . 2 . . . . . 2 Heavy 1 | . . . . . . . . . . . . . . . . . . . . . 1 . Behemoth 2 | . . . . . . . . . . . . . . . . 1 . 1 . . . . Compactor 1 | . . . . . . . 1 . . . . . . . . . . . . . . . Cetus Guard 4 | . . . . . . . . . . . . . . . . . . . 4 . . . Lightning 6 | . . . . . . . . . . . . . . . . . . . . . 6 . Master Thief 1 | . . . . . . . . . . . . . . 1 . . . . . . . . Thug 2 | . . . . . . . . . . . . . . . . . . . . . 2 . Best Kill Streak 11 | 2 . 4 . 7 2 4 1 1 . . 2 3 2 3 . 6 4 3 3 1 11 7 Combat Bots Only 7 | . . 3 . 7 2 4 1 1 . . 2 3 2 3 . 6 4 2 2 1 6 5 Max Kills in Single Turn 10 | 1 . 2 . 2 1 1 1 1 . . 1 2 1 1 . 2 3 2 2 1 10 2 Gunslinging 1 | . . 1 . 1 . . . . . . . 1 . . . . . . . . 1 . Exploded 3 | . . . . . . . . . . . . 1 . . . . 3 . . . . 2 Melee 1 | . . . . . 1 1 . 1 . . 1 1 1 . . . . . . . . . Uniques/NPCs Destroyed . | . . . . . . . . . . . . . . . . . . . . . . . Combat | -11 -10 -10 -10 -9 -8 -7 -7 -7 -7 -7 -6 -6 -6 -6 -6 -5 -5 -5 -5 -5 -5 -4 -------- Run | Yrd Mat Min Exi Min Mat Fac Was Fac Low Dat Pro Fac Low Low Zio Pro Fac Ext Cet Arc Hub Fac Hostile Shots Fired 1176 | . 12 12 . 70 6 39 . 42 3 . 35 122 51 9 . 75 68 87 6 7 331 201 Missed 346 | . 4 5 . 17 4 14 . 21 . . 8 36 21 3 . 26 20 20 2 1 90 54 Hits 830 | . 8 7 . 53 2 25 . 21 3 . 27 86 30 6 . 49 48 67 4 6 241 147 Melee 13 | . . . . . . . . . . . 7 . 2 . . 2 . . . . 2 . Projectile 817 | . 8 7 . 53 2 25 . 21 3 . 20 86 28 6 . 47 48 67 4 6 239 147 Critical Strikes 34 | . . . . . . . . . . . 3 5 2 . . 1 . 4 1 . 11 7 Part Disruptions 3 | . . . . . . . . . . . . . . . . . 2 . . . . 1 Damage Taken 15044 | . 86 95 . 443 33 256 . 143 447 . 579 1716 494 91 . 1016 760 1495 65 176 3930 3219 Core 2922 | . 10 15 . 86 16 . . 11 146 . 97 264 35 14 . 92 142 437 . 27 378 1152 Absorbed by Shields 1717 | . . . . . . . . . . . . . . . . . . 103 65 . 1549 . Core Remaining (%) 61 | 100 . . . 55 97 . . . . . 63 . . . . 52 . . . . 1 . Volleys Fired 312 | 16 . 11 . 19 . . 5 1 23 . 4 19 3 6 . 23 31 31 9 4 83 24 Largest 4 | 2 . 2 . 2 . . 3 3 3 . 3 3 3 4 . 1 4 4 4 4 4 3 Hottest 250 | 70 . 70 . 70 . . 168 168 168 . 168 166 163 193 . 250 250 185 201 162 162 248 Shots Fired 847 | 32 . 22 . 38 . . 16 4 27 . 8 54 9 23 . 23 86 117 32 16 299 41 Gun 558 | 32 . 22 . 38 . . 11 3 2 . 4 51 3 12 . 23 34 81 14 8 212 8 Cannon 279 | . . . . . . . 5 1 25 . 4 3 6 11 . . 50 36 18 8 87 25 Launcher 10 | . . . . . . . . . . . . . . . . . 2 . . . . 8 Special . | . . . . . . . . . . . . . . . . . . . . . . . Kinetic 634 | 16 . 11 . 19 . . 6 2 1 . 2 19 6 17 . . 83 98 31 16 299 8 Thermal 198 | 16 . 11 . 19 . . 10 2 26 . 6 35 3 6 . 23 1 19 1 . . 20 Explosive 10 | . . . . . . . . . . . . . . . . . 2 . . . . 8 Electromagnetic 5 | . . . . . . . . . . . . . . . . . . . . . . 5 Robot Hit Streak 13 | 8 . 4 . 6 . . 10 1 . . 2 7 2 3 . 7 11 7 11 7 13 9 Robot Miss Streak 16 | 2 . 3 . 5 . . 2 1 . . 3 4 4 11 . 16 6 9 3 1 11 3 Penetration Max 2 | . . . . . . . . . . . . . . . . . 1 1 1 1 2 . Secondary Targets 10 | . . 2 . 3 . . . . . . . 1 . . . . . . . . 4 . Max Gunslinging Chain 1 | . . 1 . 1 . . . . . . . 1 . . . . . . . . 1 . Shots Hit Robots 544 | 21 . 13 . 22 6 13 12 7 . . 15 63 11 7 . 21 36 83 24 12 152 26 Core Hits 378 | 6 . 8 . 12 2 6 2 4 . . 6 30 4 5 . 35 31 32 14 4 106 71 Critical Kills 22 | . . . . . . . . . . . . 2 . . . . 1 1 2 1 15 . Critical Parts Destroyed 29 | . . . . . . . . . . . . 5 1 1 . . 1 5 4 1 11 . Critical Strikes 63 | 1 . . . 1 . 1 1 . . . 1 9 1 1 . . 2 8 8 3 26 . Burn 5 | 1 . . . 1 . . . . . . . 2 . . . . . 1 . . . . Destroy 41 | . . . . . . . 1 . . . . . . . . . 1 5 6 3 25 . Blast 3 | . . . . . . . . . . . . . . . . . . 1 2 . . . Smash 12 | . . . . . . . . . . . . 7 1 1 . . 1 1 . . 1 . Sever 2 | . . . . . . 1 . . . . 1 . . . . . . . . . . . Melee Attacks 165 | . . . . . 9 14 . 10 14 . 17 36 8 2 2 . 11 34 . 1 5 2 Impact 60 | . . . . . . . . . . . . 26 8 2 2 . 11 4 . . 5 2 Slashing 74 | . . . . . 9 14 . 10 14 . 17 10 . . . . . . . . . . Piercing 13 | . . . . . . . . . . . . . . . . . . 13 . . . . Sneak Attacks 30 | . . . . . . . . . . . 1 . 1 . . . 2 22 . 1 2 1 Combat Hostiles 1 | . . . . . . . . . . . 1 . . . . . . . . . . . Follow-up Attacks . | . . . . . . . . . . . . . . . . . . . . . . . Damage Inflicted 21060 | 266 . 164 . 300 269 608 254 279 . . 587 1959 440 173 . 1617 1923 2077 785 351 6311 2697 Guns 9081 | 266 . 164 . 300 . . 153 19 . . 18 776 . 65 . 1617 563 990 279 208 3552 111 Cannons 3867 | . . . . . . . 101 24 . . 26 82 61 60 . . 687 344 506 143 1137 696 Explosions 3837 | . . . . . . . . . . . . 77 . . . . 533 . . . 1429 1798 Melee 4271 | . . . . . 269 608 . 236 . . 543 1024 379 48 . . 140 743 . . 193 88 Ramming 4 | . . . . . . . . . . . . . . . . . . . . . . 4 Kinetic 9103 | 142 . 75 . 164 . . 68 19 . . . 308 61 103 . . 1131 1120 761 351 4689 111 Thermal 3819 | 124 . 89 . 136 . . 186 24 . . 44 627 . 22 . 1617 119 214 24 . . 593 Explosive 2295 | . . . . . . . . . . . . . . . . . 497 . . . . 1798 Electromagnetic 1568 | . . . . . . . . . . . . . . . . . 36 . . . 1429 103 Impact 2113 | . . . . . . . . . . . . 978 379 48 . . 140 287 . . 193 88 Slashing 1702 | . . . . . 269 608 . 236 . . 543 46 . . . . . . . . . . Piercing 456 | . . . . . . . . . . . . . . . . . . 456 . . . . Highest Corruption 16 | . . . . . . . 14 14 16 16 16 2 2 2 2 1 1 1 1 . 3 14 Average Corruption 5 | . . . . . . . 10 14 14 16 16 1 2 2 2 1 1 1 1 . 2 10 Corruption Purged 1 | . . . . . . . . . . . . . . . . . . . 1 . . . Corruption Blocked . | . . . . . . . . . . . . . . . . . . . . . . . Effects 141 | . . . . . . . 5 20 28 4 18 9 3 5 2 . 5 15 1 . 18 8 Message Errors 31 | . . . . . . . 1 6 9 1 2 2 . 2 . . 2 2 . . 4 . Matter Fused 34 | . . . . . . . 3 4 9 1 5 2 1 . 1 . 2 3 . . 2 1 Heat Flow Errors 25 | . . . . . . . . 2 4 1 5 3 . 1 . . . 3 . . 5 1 Energy Discharges 12 | . . . . . . . . . 2 1 2 . 1 . . . . 4 . . 2 . Parts Rejected 1 | . . . . . . . . . . . 1 . . . . . . . . . . . Parts Fused 2 | . . . . . . . . . . . . . . . . . . 1 . . . 1 Data Loss (minor) 13 | . . . . . . . . 4 2 . 2 1 . . . . 1 1 1 . 1 . Data Loss (major) 5 | . . . . . . . . 1 . . . . 1 2 . . . . . . . 1 Misfires 6 | . . . . . . . 1 1 2 . . 1 . . . . . . . . 1 . Alerts 3 | . . . . . . . . 1 . . 1 . . . 1 . . . . . . . Misdirections 5 | . . . . . . . . 1 . . . . . . . . . . . . . 4 Weapon Failures 4 | . . . . . . . . . . . . . . . . . . 1 . . 3 . Overload Shots . | . . . . . . . . . . . . . . . . . . . . . . . Overflow Damage 957 | . . . . . . 10 . . . . 9 237 136 48 . . 72 151 . . 171 123 Projectiles 49 | . . . . . . . . . . . . . . . . . 24 . . . . 25 Explosions 90 | . . . . . . . . . . . . 11 . . . . . . . . 29 50 Melee 818 | . . . . . . 10 . . . . 9 226 136 48 . . 48 151 . . 142 48 Knockbacks 38 | . . . . . . . . . . . . 6 8 2 . . 6 5 . 1 9 1 Impact 12 | . . . . . . . . . . . . 4 3 . . . . 3 . . 1 1 Kinetic 25 | . . . . . . . . . . . . 2 5 2 . . 6 2 . 1 7 . Secondary 1 | . . . . . . . . . . . . . . . . . . . . . 1 . Self-Inflicted Damage 545 | . . . . . . . . . . . . 81 . . . . 100 . . . 105 259 Shots 19 | . . . . . . . . . . . . 1 . . . . 5 . . . 1 12 Rammed 2 | . . . . . . . . . . . . . . . . . . . . . . 2 Targets Rammed 2 | . . . . . . . . . . . . . . . . . . . . . . 2 Kicked . | . . . . . . . . . . . . . . . . . . . . . . . Crushed . | . . . . . . . . . . . . . . . . . . . . . . . Highest Temperature 539 | 45 . 156 . 54 . . 234 249 334 208 235 258 192 539 . 157 63 273 63 63 304 456 Average Temperature 89 | 15 . 84 . 22 . . 105 96 122 122 94 108 81 241 . 53 23 55 26 32 54 196 Received Heat Transfer 2202 | . 48 57 . . . 42 . 30 12 . 90 270 45 . . 63 57 710 . 18 648 112 Effects 22 | . . . . . . . . . . . 1 . . 11 . . . . . . 1 9 Shutdowns 3 | . . . . . . . . . . . . . . 2 . . . . . . . 1 Energy Bleed 4 | . . . . . . . . . . . 1 . . 1 . . . . . . 1 1 Interference 8 | . . . . . . . . . . . . . . 2 . . . . . . . 6 Damage (minor) 3 | . . . . . . . . . . . . . . 2 . . . . . . . 1 Damage (major) 4 | . . . . . . . . . . . . . . 4 . . . . . . . . Siege Activations . | . . . . . . . . . . . . . . . . . . . . . . . Martial Activations . | . . . . . . . . . . . . . . . . . . . . . . . Shielding Activations . | . . . . . . . . . . . . . . . . . . . . . . . Robots Disrupted 1 | . . . . . . . . . . . . . . . . . . . . . . 1 Combat Hostiles 1 | . . . . . . . . . . . . . . . . . . . . . . 1 Robots Corrupted 17 | . . . . . . . . . . . . 7 2 1 . . . 3 . . 3 1 Combat Hostiles 10 | . . . . . . . . . . . . 7 1 1 . . . . . . 1 . Parts Fried 33 | . . . . . . . . . . . . 5 4 4 . . . 8 . . 9 3 Impact Corruptions 30 | . . . . . . . . . . . . 10 5 1 . . 1 6 . . 5 2 Robots Melted 1 | . . . . . . . . . . . . 1 . . . . . . . . . . Combat Hostiles 1 | . . . . . . . . . . . . 1 . . . . . . . . . . Parts Melted 11 | . . . . 2 . . . . . . . 4 . . . 4 . 1 . . . . Heat Transferred 6007 | 444 . 259 . 481 . . 385 50 . . 87 1344 . 50 . 2275 175 420 37 . . . Parts Sabotaged . | . . . . . . . . . . . . . . . . . . . . . . . Parts Stolen 2 | . . . . . . . . . . . . . 2 . . . . . . . . . Parts Stripped . | . . . . . . . . . . . . . . . . . . . . . . . Power Chain Reactions . | . . . . . . . . . . . . . . . . . . . . . . . Alert | -11 -10 -10 -10 -9 -8 -7 -7 -7 -7 -7 -6 -6 -6 -6 -6 -5 -5 -5 -5 -5 -5 -4 ------- Run | Yrd Mat Min Exi Min Mat Fac Was Fac Low Dat Pro Fac Low Low Zio Pro Fac Ext Cet Arc Hub Fac Maximum Alert Level 5 | . . . . 1 . . . 1 . . . 1 . . . . 2 3 3 1 5 4 Low Security (%) 45 | 100 100 100 . 68 100 100 100 98 . . . 94 . . . . . . . . 12 . Level 1 14 | . . . . 31 . . . 1 . . . 5 . . . . . 52 . 100 17 . Level 2 21 | . . . . . . . . . . . . . . . . . 100 29 91 . 2 . Level 3 5 | . . . . . . . . . . . . . . . . . . 17 8 . 2 19 Level 4 6 | . . . . . . . . . . . . . . . . . . . . . 16 80 Level 5 6 | . . . . . . . . . . . . . . . . . . . . . 48 . High Security . | . . . . . . . . . . . . . . . . . . . . . . . Max Security . | . . . . . . . . . . . . . . . . . . . . . . . Peak Influence 2405 | 10 8 65 . 220 70 80 4 207 . . . 222 . . . . 661 1031 739 378 2405 1298 Initial 1148 | . . . . . 70 . 4 . . . . 50 . . . . 544 242 573 224 114 1148 Average 446 | 1 . 10 . 141 28 23 . 119 . . . 54 . . . . 540 446 622 332 1360 1151 Influence Increases 9018 | 25 8 75 . 280 63 150 . 264 15 . 230 553 55 70 . 365 900 1589 383 214 3179 600 Destroy 0b10 Robot/C 3640 | . . 60 . 240 40 120 . 20 . . 100 340 40 60 . 300 180 680 160 80 1040 180 Destroy 0b10 Robot/NC 310 | 25 . 5 . . . . . 10 . . . . 5 . . 5 25 50 10 5 135 35 Destroy Leader 634 | . . 10 . 40 20 30 . 14 . . 10 110 10 10 . 30 32 62 . . 226 30 Allied During Kill 1578 | . . . . . . . . . . . . . . . . . . 648 170 85 675 . Successful Hack 78 | . 8 . . . . . . . . . . 27 . . . . 8 . 9 . 26 . Disable Machine 540 | . . . . . . . . . . . . 45 . . . . 60 30 . 30 345 30 Anti-Garrison Action 400 | . . . . . . . . 200 . . . . . . . . . . . . 200 . Destroy Structure 1013 | . . . . . 3 . . 5 . . . 31 . . . . 130 104 34 14 472 220 Advance Influence 450 | . . . . . . . . . . . . . . . . . 450 . . . . . Partial Spotted 15 | . . . . . . . . . . . . . . . . . . . . . . 15 Lose Combat Pursuer 360 | . . . . . . . . 15 15 . 120 . . . . 30 15 15 . . 60 90 Influence Decreases 7720 | 25 8 75 . 100 243 136 14 212 67 . 150 426 262 70 . 214 555 1060 846 448 1164 1645 Entered New Map 2758 | . . . . . 110 . 10 . 20 . . 30 78 . . . 57 254 452 338 214 1195 Time Decay 3622 | 25 8 75 . 90 133 136 4 212 47 . 120 326 154 60 . 184 368 556 334 70 490 230 Search Patrol Dispatched 100 | . . . . . . . . . . . . . . . . . 100 . . . . . Lost Part 720 | . . . . 10 . . . . . . 30 70 30 10 . 30 30 130 . . 160 220 Lost Ally 520 | . . . . . . . . . . . . . . . . . . 120 60 40 300 . Squads Dispatched 43 | . 1 . . . . 1 . 2 . . . 6 . . . 1 5 3 . . 17 7 Investigation 5 | . 1 . . . . . . 1 . . . 1 . . . . . . . . 2 . Extermination 7 | . . . . . . 1 . . . . . 4 . . . . 1 . . . . 1 Reinforcement 17 | . . . . . . . . 1 . . . 1 . . . . 1 3 . . 9 2 Assault 7 | . . . . . . . . . . . . . . . . 1 . . . . 5 1 Garrison 7 | . . . . . . . . . . . . . . . . . 3 . . . 1 3 Intercept . | . . . . . . . . . . . . . . . . . . . . . . . Searches Triggered 1 | . . . . . . . . . . . . . . . . . 1 . . . . . Data Miner Redirects 7 | . . . . . . . . . . . . 1 . . . . . . . . 6 . Construction Impeded 5 | . . . . . . . . . . . . . . . . . . 2 . . 2 1 Haulers Reinforced 2 | . . . . . . . . . . . . . . . . . . . . . 2 . Active Scanning Responses . | . . . . . . . . . . . . . . . . . . . . . . . Cargo Convoy Interrupts . | . . . . . . . . . . . . . . . . . . . . . . . Stealth | -11 -10 -10 -10 -9 -8 -7 -7 -7 -7 -7 -6 -6 -6 -6 -6 -5 -5 -5 -5 -5 -5 -4 --------- Run | Yrd Mat Min Exi Min Mat Fac Was Fac Low Dat Pro Fac Low Low Zio Pro Fac Ext Cet Arc Hub Fac Distress Signals 16 | . . . . . 1 . . . . . . 1 . . . 1 . 5 2 . 4 2 Communications Jammed . | . . . . . . . . . . . . . . . . . . . . . . . Distress Signals . | . . . . . . . . . . . . . . . . . . . . . . . Times Spotted 289 | . 5 3 . 14 3 6 6 5 1 . 12 24 13 4 . 22 12 36 9 8 82 24 Peak Tracking Total 15 | . 5 3 . 7 2 3 5 2 1 . 4 5 7 2 . 7 4 5 5 2 15 13 Tactical Retreats 14 | . . . . . . . . 1 1 . 4 . . . . 1 1 1 . . 4 1 Traps | -11 -10 -10 -10 -9 -8 -7 -7 -7 -7 -7 -6 -6 -6 -6 -6 -5 -5 -5 -5 -5 -5 -4 ------- Run | Yrd Mat Min Exi Min Mat Fac Was Fac Low Dat Pro Fac Low Low Zio Pro Fac Ext Cet Arc Hub Fac Traps Triggered 4 | . 1 . . . . 1 . . . . . . . . . . 1 1 . . . . Indirectly . | . . . . . . . . . . . . . . . . . . . . . . . Trap Hack Attempts 1 | . . . . . . . . . . . . . . . . . . 1 . . . . Triggered . | . . . . . . . . . . . . . . . . . . . . . . . Disarmed . | . . . . . . . . . . . . . . . . . . . . . . . Reprogrammed . | . . . . . . . . . . . . . . . . . . . . . . . Reused 1 | . . . . . . . . . . . . . 1 . . . . . . . . . Traps Extracted . | . . . . . . . . . . . . . . . . . . . . . . . Installed 6 | . . . . . . . . . . . . . 6 . . . . . . . . . Triggered 1 | . . . . . . . . . . . . . 1 . . . . . . . . . Most Traps Carried 6 | . . . . . . . . . . . . . 6 . . . . . . . . . Machines | -11 -10 -10 -10 -9 -8 -7 -7 -7 -7 -7 -6 -6 -6 -6 -6 -5 -5 -5 -5 -5 -5 -4 ---------- Run | Yrd Mat Min Exi Min Mat Fac Was Fac Low Dat Pro Fac Low Low Zio Pro Fac Ext Cet Arc Hub Fac Machines Disabled 37 | . . . . . . . . . . . . 3 . . . . 4 3 . 2 23 2 Max in Single Turn 4 | . . . . . . . . . . . . 1 . . . . 4 2 . 1 4 1 Garrison Access 2 | . . . . . . . . 1 . . . . . . . . . . . . 1 . Network Hub 1 | . . . . . . . . . . . . . . . . . . . . . 1 . Energy Cycler 1 | . . . . . . . . . . . . . . . . . . 1 . . . . Machines Repaired . | . . . . . . . . . . . . . . . . . . . . . . . Machines Dismantled . | . . . . . . . . . . . . . . . . . . . . . . . Machines Sabotaged . | . . . . . . . . . . . . . . . . . . . . . . . Overloaded Fab Kills . | . . . . . . . . . . . . . . . . . . . . . . . Hacking | -11 -10 -10 -10 -9 -8 -7 -7 -7 -7 -7 -6 -6 -6 -6 -6 -5 -5 -5 -5 -5 -5 -4 --------- Run | Yrd Mat Min Exi Min Mat Fac Was Fac Low Dat Pro Fac Low Low Zio Pro Fac Ext Cet Arc Hub Fac Machines Accessed 34 | . 2 . 1 . 2 1 . 2 . 3 . 12 . . . . 1 3 1 . 6 . Terminals 24 | . 2 . . . 1 1 . 1 . . . 9 . . . . 1 3 1 . 5 . Fabricators . | . . . . . . . . . . . . . . . . . . . . . . . Repair Stations . | . . . . . . . . . . . . . . . . . . . . . . . Recycling Units . | . . . . . . . . . . . . . . . . . . . . . . . Scanalyzers 4 | . . . . . 1 . . . . . . 3 . . . . . . . . . . Garrison Access 2 | . . . . . . . . 1 . . . . . . . . . . . . 1 . Total Hacks 85 | . 5 . 1 . 5 2 . 2 . 25 . 27 . . . . 3 5 1 . 9 . Successful 50 | . 4 . 1 . 2 1 . 1 . 25 . 9 . . . . 2 1 1 . 3 . Failed 33 | . 1 . . . 2 1 . 1 . . . 17 . . . . 1 4 . . 6 . Catastrophic 8 | . . . . . 1 1 . 1 . . . 2 . . . . 1 1 . . 1 . Database Lockouts 2 | . . . . . 1 . . . . . . 1 . . . . . . . . . . Manual 51 | . 5 . 1 . 3 1 . 2 . . . 20 . . . . 3 5 1 . 10 . Terminals 48 | . 5 . . . 3 2 . 1 . . . 20 . . . . 3 5 1 . 8 . Fabricators . | . . . . . . . . . . . . . . . . . . . . . . . Repair Stations . | . . . . . . . . . . . . . . . . . . . . . . . Recycling Units . | . . . . . . . . . . . . . . . . . . . . . . . Scanalyzers 9 | . . . . . 2 . . . . . . 7 . . . . . . . . . . Garrison Access 2 | . . . . . . . . 1 . . . . . . . . . . . . 1 . Terminal Hacks 30 | . 1 . 1 . . 1 . . . 25 . . . . . . 1 . 1 . . . Record 7 | . . . . . . 1 . . . 6 . . . . . . . . . . . . Part Schematic 11 | . . . . . . . . . . 11 . . . . . . . . . . . . Robot Schematic 5 | . . . . . . . . . . 5 . . . . . . . . . . . . Prototype ID Bank 3 | . . . . . . . . . . 3 . . . . . . . . . . . . Open Door 1 | . . . . . . . . . . . . . . . . . . . 1 . . . Branch Access Points 2 | . 1 . . . . . . . . . . . . . . . 1 . . . . . Proto ID Catalog 1 | . . . 1 . . . . . . . . . . . . . . . . . . . Fabricator Hacks . | . . . . . . . . . . . . . . . . . . . . . . . Repair Station Hacks . | . . . . . . . . . . . . . . . . . . . . . . . Recycling Unit Hacks . | . . . . . . . . . . . . . . . . . . . . . . . Scanalyzer 5 | . . . . . 1 . . . . . . 4 . . . . . . . . . . Retrieve Study 5 | . . . . . 1 . . . . . . 4 . . . . . . . . . . Garrison Access Hacks . | . . . . . . . . . . . . . . . . . . . . . . . Unauthorized Hacks 14 | . 2 . . . 1 . . 1 . . . 5 . . . . 1 1 . . 3 . Terminals 12 | . 2 . . . 1 . . . . . . 5 . . . . 1 1 . . 2 . Botnet 12 | . 2 . . . 1 . . . . . . 5 . . . . 1 1 . . 2 . Fabricators . | . . . . . . . . . . . . . . . . . . . . . . . Repair Stations . | . . . . . . . . . . . . . . . . . . . . . . . Recycling Units . | . . . . . . . . . . . . . . . . . . . . . . . Scanalyzers . | . . . . . . . . . . . . . . . . . . . . . . . Garrison Access 2 | . . . . . . . . 1 . . . . . . . . . . . . 1 . Jam 2 | . . . . . . . . 1 . . . . . . . . . . . . 1 . Data Cores Recovered 2 | . . . . . . . . . . . . . . . . . . 1 . . 1 . Used . | . . . . . . . . . . . . . . . . . . . . . . . Hacking Detections 24 | . 1 . . . . 1 . 1 . . . 11 . . . . 1 3 1 . 5 . Full Trace Events 2 | . . . . . . . . . . . . 1 . . . . . . . . 1 . Feedback Events . | . . . . . . . . . . . . . . . . . . . . . . . Feedback Blocked . | . . . . . . . . . . . . . . . . . . . . . . . Robot Schematics Acquired 9 | . . . . . . . . . . 5 . . . . 4 . . . . . . . Robots Built . | . . . . . . . . . . . . . . . . . . . . . . . Authchips . | . . . . . . . . . . . . . . . . . . . . . . . Time . | . . . . . . . . . . . . . . . . . . . . . . . Total Robot Build Rating . | . . . . . . . . . . . . . . . . . . . . . . . Part Schematics Acquired 25 | . . . . . . . . . . 11 . . . . 14 . . . . . . . Parts Built . | . . . . . . . . . . . . . . . . . . . . . . . Authchips . | . . . . . . . . . . . . . . . . . . . . . . . Time . | . . . . . . . . . . . . . . . . . . . . . . . Total Part Build Rating . | . . . . . . . . . . . . . . . . . . . . . . . Part Studies Acquired 4 | . . . . . 1 . . . . . . 3 . . . . . . . . . . Parts Repaired . | . . . . . . . . . . . . . . . . . . . . . . . Time . | . . . . . . . . . . . . . . . . . . . . . . . Parts Recycled . | . . . . . . . . . . . . . . . . . . . . . . . Recycled Matter . | . . . . . . . . . . . . . . . . . . . . . . . Retrieved Matter . | . . . . . . . . . . . . . . . . . . . . . . . Retrieved Components . | . . . . . . . . . . . . . . . . . . . . . . . Parts Scanalyzed . | . . . . . . . . . . . . . . . . . . . . . . . Part Schematics Acquired . | . . . . . . . . . . . . . . . . . . . . . . . Parts Damaged . | . . . . . . . . . . . . . . . . . . . . . . . Bothacking | -11 -10 -10 -10 -9 -8 -7 -7 -7 -7 -7 -6 -6 -6 -6 -6 -5 -5 -5 -5 -5 -5 -4 ------------ Run | Yrd Mat Min Exi Min Mat Fac Was Fac Low Dat Pro Fac Low Low Zio Pro Fac Ext Cet Arc Hub Fac Used RIF Installer . | . . . . . . . . . . . . . . . . . . . . . . . Robots Hacked 2 | . . . . . . . . . . . . . . . . . . 1 . 1 . . Non-combat 2 | . . . . . . . . . . . . . . . . . . 1 . 1 . . Combat . | . . . . . . . . . . . . . . . . . . . . . . . Robot Hacks Applied 2 | . . . . . . . . . . . . . . . . . . 1 . 1 . . parse_system 1 | . . . . . . . . . . . . . . . . . . . . 1 . . check_alert 1 | . . . . . . . . . . . . . . . . . . 1 . . . . Relay Couplers Released . | . . . . . . . . . . . . . . . . . . . . . . . Fabnet Peak Effective % . | . . . . . . . . . . . . . . . . . . . . . . . Robots Rewired 11 | . . . . . . . . . . . . . . . . . . 11 . . . . Allies Hacked . | . . . . . . . . . . . . . . . . . . . . . . . Hacks Repelled . | . . . . . . . . . . . . . . . . . . . . . . . Allies | -11 -10 -10 -10 -9 -8 -7 -7 -7 -7 -7 -6 -6 -6 -6 -6 -5 -5 -5 -5 -5 -5 -4 -------- Run | Yrd Mat Min Exi Min Mat Fac Was Fac Low Dat Pro Fac Low Low Zio Pro Fac Ext Cet Arc Hub Fac Total Allies 35 | . . 1 . . . . 1 . . . . . . . . . . 26 5 . 2 . Largest Group 23 | . . 1 1 . . . 1 . . . . . . . . . . 19 23 20 16 . Highest-Rated Group 1148 | . . 31 31 . . . 31 . . . . . . . . . . 687 1148 974 696 . Highest-Rated Ally 159 | . . 31 31 . . . 31 . . . . . . . . . . 159 159 159 96 . Total Orders . | . . . . . . . . . . . . . . . . . . . . . . . Ally Attacks 357 | . . . . . . . 16 . . . . . . . . . . 166 25 45 105 . Total Damage 8646 | . . . . . . . 235 . . . . . . . . . . 3190 836 770 3615 . Kills 60 | . . . . . . . . . . . . . . . . . . 28 4 4 24 . Allies Corrupted 5 | . . . . . . . . . . . . . . . . . . . . . 5 . Allies Melted 1 | . . . . . . . . . . . . . . . . . . . . . 1 . Intel | -11 -10 -10 -10 -9 -8 -7 -7 -7 -7 -7 -6 -6 -6 -6 -6 -5 -5 -5 -5 -5 -5 -4 ------- Run | Yrd Mat Min Exi Min Mat Fac Was Fac Low Dat Pro Fac Low Low Zio Pro Fac Ext Cet Arc Hub Fac Active Infowar (turns) 9490 | 28 141 460 654 182 325 475 174 474 788 83 355 1699 340 443 1118 46 439 819 . . . 447 Sensors 327 | . . . . . 1 . . . . . . . . . . . . . . . . 326 Terrain 5631 | . . . . . . . . . 354 . . 1699 340 443 1118 46 439 819 . . . 373 Seismic 1847 | 28 141 460 654 182 325 7 50 . . . . . . . . . . . . . . . T.N.C. 2674 | . . . . . 325 475 174 474 788 83 355 . . . . . . . . . . . Cloaking 2757 | . . . . . 21 468 11 373 292 . 112 1277 . . . . . . . . . 203 Robot Analysis Total . | . . . . . . . . . . . . . . . . . . . . . . . Derelict Logs Recovered 3 | . . . . . . . . . 1 . . . . . 2 . . . . . . . Drone Launches . | . . . . . . . . . . . . . . . . . . . . . . . Drone Recoveries . | . . . . . . . . . . . . . . . . . . . . . . . Exploration | -11 -10 -10 -10 -9 -8 -7 -7 -7 -7 -7 -6 -6 -6 -6 -6 -5 -5 -5 -5 -5 -5 -4 ------------- Run | Yrd Mat Min Exi Min Mat Fac Was Fac Low Dat Pro Fac Low Low Zio Pro Fac Ext Cet Arc Hub Fac Turns Passed 13758 | 219 141 460 654 182 325 475 174 474 788 83 396 1867 340 447 1118 453 846 1629 747 157 1286 497 Spaces Moved 8377 | 101 82 258 405 69 168 284 120 399 333 80 310 1304 239 316 863 287 547 952 329 59 538 334 Core 76 | 4 . . . . . . . . . . . . . . . . . . . . . 72 Treads 1079 | 97 82 258 405 69 168 . . . . . . . . . . . . . . . . . Legs 1439 | . . . . . . . . . . . . . . . . . . 251 329 59 538 262 Wheels 5783 | . . . . . . 284 120 399 333 80 310 1304 239 316 863 287 547 701 . . . . Hover . | . . . . . . . . . . . . . . . . . . . . . . . Flight . | . . . . . . . . . . . . . . . . . . . . . . . Fastest Speed 50 | 50 160 160 160 160 160 135 120 105 105 105 105 100 100 120 120 120 100 95 190 190 97 50 Average Speed 132 | 155 160 160 160 160 165 149 121 105 105 105 109 111 116 130 127 120 118 131 190 190 177 112 Slowest Speed 400 | 160 160 160 160 160 240 150 150 105 105 105 120 145 120 135 135 135 185 400 190 190 190 310 Overloaded Moves . | . . . . . . . . . . . . . . . . . . . . . . . Propulsion Burnouts . | . . . . . . . . . . . . . . . . . . . . . . . Robots Hopped 2 | . . . . . . . . . . . . . . . . . . . . . 2 . Potential Cave-ins 9 | . . . . . . . . . 7 . 2 . . . . . . . . . . . Cave-ins Triggered 1 | . . . . . . . . . 1 . . . . . . . . . . . . . Exploration Rate (%) 43 | 6 26 54 70 9 13 7 89 16 29 68 55 36 39 47 80 54 9 84 83 69 56 9 Regions Visited 22 Branch Regions 14 Pre-discovered Areas 3 | . . . . . . . . . . 1 . . . . 2 . . . . . . . Known Exits Taken 7 | . 1 . . . . . . . . . . 1 1 1 1 1 1 . . . . . Unknown Exits Taken 13 | 1 . 1 1 1 1 . . 1 1 1 1 . . . . . . 1 1 1 1 . Scrap Searched 8 | . . 1 . . . . . . 1 . 1 . . 3 2 . . . . . . . Spaces Dug 53 | . . . . . 3 . . 5 14 . 2 10 . 1 . . 16 . . . 2 . Terrain Destroyed 611 | . . . . . 3 . . 5 22 . 3 42 3 5 . . 73 40 2 6 257 150 Melee 45 | . . . . . 3 . . 5 14 . 2 10 . 1 . . 8 . . . 2 . Projectile 180 | . . . . . . . . . 8 . 1 . 3 4 . . 33 21 2 6 97 5 AOE 386 | . . . . . . . . . . . . 32 . . . . 32 19 . . 158 145 Terrain Rammed . | . . . . . . . . . . . . . . . . . . . . . . . Walls Destroyed . | . . . . . . . . . . . . . . . . . . . . . . . Machines Disabled . | . . . . . . . . . . . . . . . . . . . . . . . Actions | -11 -10 -10 -10 -9 -8 -7 -7 -7 -7 -7 -6 -6 -6 -6 -6 -5 -5 -5 -5 -5 -5 -4 --------- Run | Yrd Mat Min Exi Min Mat Fac Was Fac Low Dat Pro Fac Low Low Zio Pro Fac Ext Cet Arc Hub Fac Total 10179 | 127 92 283 412 103 206 321 137 443 731 79 341 1622 283 333 876 326 654 1211 438 94 659 408 Wait 926 | . 11 11 . 15 5 12 3 17 357 . 4 186 14 . . 11 33 131 72 26 6 12 Move 8352 | 100 81 257 404 68 167 284 119 398 331 79 309 1303 238 315 862 286 546 951 328 58 534 334 Hop 1 | . . . . . . . . . . . . . . . . . . . . . 1 . Pick Up 89 | 4 . 4 5 . 6 2 . 4 . . . 21 6 5 5 2 4 11 4 1 2 3 Fast Attach 73 | 7 . . . . 2 2 1 1 . . 3 9 . 1 . . 9 17 7 1 6 7 Attach 51 | . . . . 1 4 2 1 . 1 . . 8 2 3 1 2 5 2 . . 9 10 Detach 19 | . . . . . 2 2 1 . . . . 1 . 1 . . 1 2 1 . 1 7 Swap 71 | . . . 1 . 5 1 5 5 4 . 4 20 . . . 1 1 10 4 1 5 4 Drop 94 | . . . 2 . 6 2 2 7 . . . 19 6 . 6 1 5 13 13 2 7 3 Fire 312 | 16 . 11 . 19 . . 5 1 23 . 4 19 3 6 . 23 31 31 9 4 83 24 Melee 165 | . . . . . 9 14 . 10 14 . 17 36 8 2 2 . 11 34 . 1 5 2 Ram 2 | . . . . . . . . . . . . . . . . . . . . . . 2 Kick . | . . . . . . . . . . . . . . . . . . . . . . . Crush . | . . . . . . . . . . . . . . . . . . . . . . . Escape Stasis 17 | . . . . . . . . . 1 . . . . . . . 8 8 . . . . Rewire . | . . . . . . . . . . . . . . . . . . . . . . . Trap 7 | . . . . . . . . . . . . . 6 . . . . 1 . . . . Miscellaneous . | . . . . . . . . . . . . . . . . . . . . . . . Route ------- -11/Scrapyard -10/Materials (discovered 3 exits: [*Mat] / *Min x2) -10/Mines (discovered 2 exits: [*Mat] / *Exi) -10/Exiles -9/Mines -8/Materials -7/Factory -7/Waste -7/Factory -7/Lower Caves -7/Data Miner -6/Proximity Caves -6/Factory (discovered 3 exits: *Fac x2 / *Low) -6/Lower Caves -6/Lower Caves (discovered 2 exits: *Fac / *Zio) -6/Zion -5/Proximity Caves -5/Factory (discovered 4 exits: Upp x2 / *Ext x2) -5/Extension (discovered 2 exits: *Fac / *Cet) -5/Cetus (discovered 2 exits: *Fac / *Arc) -5/Archives (discovered 2 exits: *Hub x2) -5/Hub_04(d) (discovered 2 exits: *Fac x2) -4/Factory History --------- Turn | Location | Event 45 | -11/Scrapyard | Discovered new exit (range 16) 220 | -11/Scrapyard | Entered Materials 252 | -10/Materials | Identified exit to Mines 313 | -10/Materials | Discovered new exit (range 16) 316 | -10/Materials | Build established: Mutant 361 | -10/Materials | Entered Mines 390 | -10/Mines | Discovered new exit (range 5) 557 | -10/Mines | Found DCF Scrap (12 items) 601 | -10/Mines | Found a damaged Exp. Sensor Array with a note attached 604 | -10/Mines | Found Prototype Device 655 | -10/Mines | Escorted by a lone wolf Derelict 807 | -10/Mines | Deemed a non-threat by the Exiles lab entrance 808 | -10/Mines | Discovered new exit (range 5) 821 | -10/Mines | Entered Exiles 821 | -10/Exiles | Accompanied by 1 ally 858 | -10/Exiles | Met 8R-AWN 887 | -10/Exiles | Met EX-HEX 937 | -10/Exiles | Met EX-BIN 988 | -10/Exiles | Met EX-DEC 1224 | -10/Exiles | Aligned with FarCom system 1225 | -10/Exiles | Given EX-Vault access code 1264 | -10/Exiles | Opened EX-Vault 1280 | -10/Exiles | Found Cloak of Protection 1287 | -10/Exiles | Found Modified TNC 1290 | -10/Exiles | Found Longsword +1 1323 | -10/Exiles | Warned to stay clear of 0b10 Research branches 1451 | -10/Exiles | Discovered new exit (range 14) 1475 | -10/Exiles | Stole three prototypes: Modified TNC, Cloak of Protection, Longsword +1 1475 | -10/Exiles | Entered Mines 1602 | -9/Mines | Destroyed 7 combat bots 1646 | -9/Mines | Discovered new exit (range 5) 1657 | -9/Mines | Entered Materials 1657 | -8/Materials | Evolved 4 slots: Utility x2, Weapon x2 1693 | -8/Materials | Identified Exp. Sensor Array 1931 | -8/Materials | Central database locked down 1937 | -8/Materials | Discovered new exit (range 9) 1982 | -8/Materials | Entered Factory 1982 | -7/Factory | Evolved 2 slots: Power x1, Propulsion x1 1984 | -7/Factory | FarCom data flow suspended 2339 | -7/Factory | Discovered new exit (range 6) 2457 | -7/Factory | Sucked down chute 2457 | -7/Factory | Entered Waste 2458 | -7/Waste | Met a frightened Derelict 2472 | -7/Waste | EMP discharged 2508 | -7/Waste | Spotted C-40 Crusher 2532 | -7/Waste | Destroyed C-40 Crusher 2541 | -7/Waste | Spotted C-40 Crusher 2541 | -7/Waste | Spotted C-40 Crusher 2558 | -7/Waste | Spotted C-40 Crusher 2562 | -7/Waste | Spotted C-40 Crusher 2563 | -7/Waste | Spotted C-40 Crusher 2572 | -7/Waste | EMP discharged 2572 | -7/Waste | System corruption reached 10% 2617 | -7/Waste | Discovered new exit (range 13) 2631 | -7/Waste | Entered Factory 2959 | -7/Factory | Build established: Skirmisher 3081 | -7/Factory | Discovered new exit (range 8) 3105 | -7/Factory | Entered Lower Caves 3151 | -7/Lower Caves | Spotted B-75 Beast 3784 | -7/Lower Caves | Crushed by falling debris 3850 | -7/Lower Caves | Learned Factory trap positions 3866 | -7/Lower Caves | A Derelict revealed a hidden shortcut to meet someone special 3893 | -7/Lower Caves | Entered Data Miner 3893 | -7/Data Miner | Discovered new exit (range 6) 3913 | -7/Data Miner | Met Data Miner 3931 | -7/Data Miner | Learned location of Section 7 (-3) 3931 | -7/Data Miner | Acquired the access code to Warlord's prototype stash 3949 | -7/Data Miner | Received God Mode back door access code from Data Miner 3976 | -7/Data Miner | Entered Proximity Caves 4366 | -6/Proximity Caves | Discovered new exit (range 6) 4371 | -6/Proximity Caves | Lost 3 parts (1p1u1w) 4372 | -6/Proximity Caves | Entered Factory 4372 | -6/Factory | Evolved 2 slots: Utility x2 4373 | -6/Factory | Loaded intel: 129 trap records 4395 | -6/Factory | Found Rocket Array 4397 | -6/Factory | Found Rocket Array 4401 | -6/Factory | Found Faulty Rocket Array 4660 | -6/Factory | Incoming investigation squad redirected 5834 | -6/Factory | Discovered new exit (range 5) 5840 | -6/Factory | Identified exit to Factory 5857 | -6/Factory | Central database locked down 5990 | -6/Factory | Lost 3 parts (1n2w) 6193 | -6/Factory | Discovered exit to Factory (range 15) 6220 | -6/Factory | Discovered new exit (range 15) 6236 | -6/Factory | Identified exit to Lower Caves 6239 | -6/Factory | Entered Lower Caves 6241 | -6/Lower Caves | Encountered a Master Thief 6241 | -6/Lower Caves | Encountered a Master Thief 6242 | -6/Lower Caves | Cloak of Protection stolen by Master Thief 6246 | -6/Lower Caves | Exp. Sensor Array stolen by Master Thief 6352 | -6/Lower Caves | Lost 3 parts (2p1n) 6550 | -6/Lower Caves | Discovered new exit (range 11) 6570 | -6/Lower Caves | Attracted the attention of an 0b10 base 6578 | -6/Lower Caves | Identified exit to Lower Caves 6579 | -6/Lower Caves | Entered another Lower Caves area 6655 | -6/Lower Caves | Discovered exit to Factory (range 6) 6706 | -6/Lower Caves | Found Alien Artifact 6706 | -6/Lower Caves | Identified Core Expander 6706 | -6/Lower Caves | Installed Core Expander, added new Weapon slot 6986 | -6/Lower Caves | Discovered new exit (range 9) 6996 | -6/Lower Caves | Identified exit to Zion 6997 | -6/Lower Caves | Encountered a Warlord checkpoint 7026 | -6/Lower Caves | Entered Zion 7060 | -6/Zion | Learned location of Warlord (-4) 7171 | -6/Zion | Discovered new exit (range 15) 7282 | -6/Zion | System corruption cleaned by Quarantine Array 7406 | -6/Zion | Given A8's code to call for help 7436 | -6/Zion | Found Prototype Energy Gun 7650 | -6/Zion | Identified Storm Laser 7653 | -6/Zion | Found CR-A16's Pointy Stick 7687 | -6/Zion | Learned Factory stockpile data 7741 | -6/Zion | Learned Factory emergency access door positions 8139 | -6/Zion | Identified exit to Proximity Caves 8144 | -6/Zion | Entered Proximity Caves 8180 | -5/Proximity Caves | Spotted B-75 Beast 8217 | -5/Proximity Caves | Destroyed B-75 Beast 8243 | -5/Proximity Caves | Spotter reported a threat 8244 | -5/Proximity Caves | Spotter reported a threat 8487 | -5/Proximity Caves | Build established: Gunner 8510 | -5/Proximity Caves | Attracted the attention of an 0b10 outpost 8528 | -5/Proximity Caves | Spotter reported a threat 8591 | -5/Proximity Caves | Discovered exit to Factory (range 5) 8597 | -5/Proximity Caves | Entered Factory 8597 | -5/Factory | Evolved 2 slots: Propulsion x1, Utility x1 8783 | -5/Factory | Identified exit to Upper Caves 8783 | -5/Factory | Identified exit to Extension 8897 | -5/Factory | Search patrols dispatched 9032 | -5/Factory | Build established: Skirmisher 9116 | -5/Factory | Garrison activated, responded to threat 9440 | -5/Factory | Build established: Scavenger-Skirmisher 9443 | -5/Factory | Entered Extension 9495 | -5/Extension | Rescued a captive Derelict 9496 | -5/Extension | Rescued a captive Derelict 9517 | -5/Extension | Rescued a captive Derelict 9517 | -5/Extension | Rescued a captive Derelict 9717 | -5/Extension | Rescued a captive Derelict 9718 | -5/Extension | Rescued a captive Derelict 9782 | -5/Extension | Rescued a captive Derelict 9783 | -5/Extension | Rescued a captive Derelict 9811 | -5/Extension | Rescued a captive Derelict 9812 | -5/Extension | Rescued a captive Derelict 10240 | -5/Extension | Spotted B-75 Beast 10249 | -5/Extension | Spotted B-75 Beast 10262 | -5/Extension | Allies destroyed B-75 Beast 10277 | -5/Extension | Revealed the true nature of CR-A16's Pointy Stick 10284 | -5/Extension | Destroyed B-75 Beast 10312 | -5/Extension | Lost 11 parts (1p4n2u4w) 10335 | -5/Extension | Lost 4 allies 10418 | -5/Extension | Rescued a captive Derelict 10446 | -5/Extension | Core integrity fell below 50% 10580 | -5/Extension | Build established: Scavenger-Gunner 10672 | -5/Extension | Energy Cycler disabled 10672 | -5/Extension | Rescued a captive Derelict 10672 | -5/Extension | Rescued a captive Derelict 10672 | -5/Extension | Rescued a captive Derelict 10672 | -5/Extension | Rescued a captive Derelict 10673 | -5/Extension | Rescued a captive Derelict 10675 | -5/Extension | Rescued a captive Derelict 10734 | -5/Extension | Rescued A7 10993 | -5/Extension | Discovered new exit (range 10) 10994 | -5/Extension | Discovered new exit (range 6) 11031 | -5/Extension | Build established: Commander-Gunner 11072 | -5/Extension | Entered Cetus 11072 | -5/Cetus | Accompanied by 18 allies (A7) 11077 | -5/Cetus | Acquired a Cetus Manufacturing Module code from A7 11096 | -5/Cetus | Spotted Cetus Guard 11097 | -5/Cetus | Spotted Cetus Guard 11098 | -5/Cetus | Allies destroyed Cetus Guard 11100 | -5/Cetus | Spotted Cetus Guard 11103 | -5/Cetus | Spotted Cetus Guard 11107 | -5/Cetus | Allies destroyed Cetus Guard 11107 | -5/Cetus | Destroyed Cetus Guard 11110 | -5/Cetus | Destroyed Cetus Guard 11260 | -5/Cetus | Started Cetus Manufacturing Module 11280 | -5/Cetus | Escorted A7 to Cetus Mainframe 11285 | -5/Cetus | Manufactured an Enhanced Grunt 11310 | -5/Cetus | Manufactured an Enhanced Grunt 11335 | -5/Cetus | Manufactured an Enhanced Grunt 11360 | -5/Cetus | Manufactured an Enhanced Grunt 11385 | -5/Cetus | Manufactured an Enhanced Grunt 11463 | -5/Cetus | Discovered new exit (range 16) 11544 | -5/Cetus | Spotted Cetus Guard 11544 | -5/Cetus | Spotted Cetus Guard 11546 | -5/Cetus | Allies destroyed Cetus Guard 11547 | -5/Cetus | Spotted Cetus Guard 11548 | -5/Cetus | Destroyed Cetus Guard 11552 | -5/Cetus | Spotted Cetus Guard 11560 | -5/Cetus | Allies destroyed Cetus Guard 11561 | -5/Cetus | Destroyed Cetus Guard 11586 | -5/Cetus | Lost 3 allies 11663 | -5/Cetus | Discovered new exit (range 15) 11672 | -5/Cetus | Met Revision 17 11819 | -5/Cetus | Entered Archives 11819 | -5/Archives | Accompanied by 20 allies (A7) 11824 | -5/Archives | Received a hacking code to weaken MAIN.C 11893 | -5/Archives | Discovered new exit (range 16) 11920 | -5/Archives | Unable to access archive contents 11922 | -5/Archives | Discovered new exit (range 16) 11976 | -5/Archives | Entered Hub_04(d) 11976 | -5/Hub_04(d) | Accompanied by 17 allies 12169 | -5/Hub_04(d) | Lost 3 allies 12397 | -5/Hub_04(d) | Network Hub disabled 12439 | -5/Hub_04(d) | Spotted Lightning 12447 | -5/Hub_04(d) | Spotted Lightning 12448 | -5/Hub_04(d) | Spotted Lightning 12449 | -5/Hub_04(d) | Spotted Lightning 12450 | -5/Hub_04(d) | Destroyed Lightning 12454 | -5/Hub_04(d) | Spotted Lightning 12464 | -5/Hub_04(d) | Destroyed Lightning 12468 | -5/Hub_04(d) | Destroyed Lightning 12471 | -5/Hub_04(d) | Destroyed Lightning 12475 | -5/Hub_04(d) | Destroyed Lightning 12480 | -5/Hub_04(d) | Spotted Lightning 12483 | -5/Hub_04(d) | Lost 10 allies 12489 | -5/Hub_04(d) | Destroyed Lightning 12500 | -5/Hub_04(d) | Discovered new exit (range 13) 12576 | -5/Hub_04(d) | First assault squad dispatched 12608 | -5/Hub_04(d) | Incoming assault squad redirected 12717 | -5/Hub_04(d) | Build established: Scavenger-Gunner 12737 | -5/Hub_04(d) | Lost 4 parts (1n1u2w) 12778 | -5/Hub_04(d) | Core integrity fell below 20% 12897 | -5/Hub_04(d) | Incoming assault squad redirected 12897 | -5/Hub_04(d) | Garrison activated, responded to threat 12906 | -5/Hub_04(d) | Incoming assault squad redirected 12961 | -5/Hub_04(d) | Lost 4 parts (1p2u1w) 13017 | -5/Hub_04(d) | Incoming investigation squad redirected 13076 | -5/Hub_04(d) | Discovered new exit (range 3) 13105 | -5/Hub_04(d) | Enhanced Grunt warped into view, answering call for help 13115 | -5/Hub_04(d) | Enhanced Grunt warped into view, answering call for help 13179 | -5/Hub_04(d) | Build established: Scavenger-Tank 13218 | -5/Hub_04(d) | Incoming assault squad redirected 13225 | -5/Hub_04(d) | Incoming assault squad redirected 13262 | -5/Hub_04(d) | Entered Factory 13262 | -4/Factory | Evolved 2 slots: Propulsion x1, Utility x1 13278 | -4/Factory | Lost 3 parts (1p1u1w) 13512 | -4/Factory | First assault squad dispatched 13538 | -4/Factory | Garrison activated, responded to threat 13623 | -4/Factory | Lost 7 parts (1p1n1u4w) 13669 | -4/Factory | System corruption reached 10% 13716 | -4/Factory | Core integrity fell below 50% 13731 | -4/Factory | Core integrity fell below 20% 13748 | -4/Factory | Lost 15 parts (3p4n5u3w) 13759 | -4/Factory | Destroyed by S-27 Virus with Autogun Last Messages --------------- 13720_ Penetrated by Slug. 13720_ Slug penetrates Wall. 13723_ R-10 Processor collects VTOL Module. 13723_ U-05 Engineer lays Concrete. 13724_ U-05 Engineer builds a Wall. 13724_ U-05 Engineer lays Concrete. 13725_ The unstable cave ceiling collapses. 13725_ U-05 Engineer builds a Wall. 13725_ U-05 Engineer lays Concrete. 13727_ R-10 Processor collects VTOL Module. 13727_ Slug penetrates Wall. 13727_ U-05 Engineer builds a Wall. 13728_ Knocked back. 13731_ Acquired 40 matter. 13738_ System corrupted: Matter fused (-5). 13740_ P-70 Sage resets S-27 Virus, system corruption cleaned. 13751_ Slammed into K-01 Serf. 13753_ Destabilizing: Core damaged (-34). 13755_ K-01 Serf cleans the Assembly Bed. Map ----- +----------------------------------------------------+ | ???????????????????????????????????????? ??????### | | ???????????????????????????????????????? ????#??## | | ??????????????????????????????????? ???? ????#??#? | | ??????????????????????????????????? ???# #???#???? | | ??????????????????????????????????? ???# #??#????# | | ??????????????????????????????????? ???# #????###? | | ??????????????????????????????????? ???# #???##?#? | | ??????????????????????????????????? ???# #???##?#? | | ??????????????????????????????????? ???# #????#?## | | ??????????????????????????????????# #??# #????##?# | | ??????????????????????????????????# #??# #???##### | | ??????????????????????????????????# #??# #???#?### | | ??????????????????????????????????# ####/######### | | ??????????????????????????????????# # #?### | | ???????????????????????????###????# # """ #???# | | ???????????????????????????# ??# # """ ##### | | ???????????????????????????# """ # # """ ##### | | ???????????????????????????# """ + + + | | ???????????????????????????# """ # # ##### | | ???????????????????????????# ??# # ##?## | | ???????????????????????????# ????# # ""T"" #?### | | ???????????????????????????#??????# # """"" #?### | | ??????????????????????????????????# ##########??## | | ??????????????????????????????????# #??########### | | ?????????????????################## #???##?####### | | ?????????? @ s #????####?# | | ?????????? #???#?#?#### ] | | ?????????? !!! ""#?######## | | ??????????? w !!! ""#??####??# | | ??????????? k !! T"#???####?# | | ????????????###+######## ""#??####### | | ???????????????????????# k ""#?#?###### # | | ???????????????????????# k k###?#?###### | | ???????????????????????# #????????##### | | ???????????????????????" k #???#??#??##?? | | ??????????????????????" """" #???????###### | | ??????????????????????"F """" k#?????? ? ??# | | ??????????????????????"" """" #?????? ??#?# | | ???????????????????????# "??" #?????? ? ???# | | ???????????????????????# "??? #??????????### | | ???????????????????????? ???? ???????? ### | | ????????????????????????????????????????????? ???# | | ????????????????????????????????????????????????#? | | ?????????????????????????????????????????????? ??? | | ?????????????????????????????????????????????????? | | ?????????????????????????????????????????????????? | | ?????????????????????????????????????????????????? | | ?????????????????????????????????????????????????? | | ?????????????????????????????????????????????????? | | ?????????????????????????????????????????????????? | +----------------------------------------------------+ Best States ------------- Heat Dissipation 70 Energy Generation 45 Energy Capacity 950 Matter Stores 300 Matter Capacity 550 Sight Range 16 Robot Scan Range 16 Terrain Scan Range 16 Terrain Scan Density 210 Cloak Strength 5 Additional Mass Support 9 Base Temperature (-) 150 EM Shielding 2 Armor Coverage 450 Evasion (%) 55 Targeting Accuracy 8 Melee Accuracy 8 Target Analysis 5 Core Analysis 6 Recoil Reduction 2 Item Schematics ----------------- Combat Drone Bay | -7/Data Miner | Free Lgt. Regenerative Plating | -7/Data Miner | Free Multireflex Exoskeleton | -7/Data Miner | Free Exp. Targeting Computer | -7/Data Miner | Free Cld. Plasma Cannon | -7/Data Miner | Free Arm. Medium Treads | -7/Data Miner | Free Adv. Hacking Suite | -7/Data Miner | Free Tesla Rifle | -7/Data Miner | Free Imp. Dynamic Insulation System | -7/Data Miner | Free Quantum Capacitor | -7/Data Miner | Free Imp. Fusion Compressor | -7/Data Miner | Free Lgt. Fission Core | -6/Zion | Archive Adv. Coolant Injector | -6/Zion | Archive Imp. Particle Charger | -6/Zion | Archive Wave Gun | -6/Zion | Archive Force Field | -6/Zion | Archive Variable Charge Gun | -6/Zion | Archive Imp. Hardlight Generator | -6/Zion | Archive Lrn. Proton Cannon | -6/Zion | Archive Enh. Optical Array | -6/Zion | Archive Hardcell Cannon | -6/Zion | Archive Matter Compressor | -6/Zion | Archive Enh. Gauss Cannon | -6/Zion | Archive Adv. System Restoration Module | -6/Zion | Archive Power Amplifier | -6/Zion | Archive Robot Schematics ------------------ W-25 Informer | -7/Data Miner | Free L-41 Fighter | -7/Data Miner | Free M-14 Sweeper | -7/Data Miner | Free S-27 Virus | -7/Data Miner | Free A-15 Conveyor | -7/Data Miner | Free T-07 Excavator | -6/Zion | Archive H-66 Slayer | -6/Zion | Archive B-48 Gladiator | -6/Zion | Archive Y-72 Warden | -6/Zion | Archive Fabricated ------------ Nothing Repaired ---------- Nothing Studied --------- Imp. Ion Engine | -8/Materials | Hacked Arm. Huge Wheel | -6/Factory | Hacked Arm. Wheel | -6/Factory | Hacked Fission Core | -6/Factory | Hacked Alien Tech Used ----------------- Core Expander Achievements -------------- Main Advantage Challenges ------------ None Game ------ Seed FactoryHypervelocityCape Manual? 0 Play Time 01:41:51 Cumulative 188.3 hours Start 2026.09.02 @ 00:39:04 End 2026.09.02 @ 02:19:36 Sessions 1 Manual Loads 0 Difficulty Rogue Special Mode None Game No. 374 Rogue 374 Adventurer 0 Explorer 0 Win Type - Total 2 Types 2/0/0/0/0/0/0/0/0/0 Lore% 59 Gallery% 60 Achievement% 47 Wizard Run 0 Options --------- Layout 2 ASCII 0 Keyboard 1 Movement Arrows Keybinds 0 Fullscreen 1 Font 24/Smallcaps Map View 50x44 Zoom Use 0% Tactical HUD 1 Map Filters NONE Filters NONE Steam 1 RUN: e888d481-04e1-4155-95b5-c629cabd4bf8